fUSD/lending_fUSD_20260513
["ID","MTS","AMOUNT","RATE_DAILY","PERIOD"]
[422184395,1778662235000,-435.86,0.00026488,7]
[422184398,1778662235000,-198.75,0.00026517,7]
[422184399,1778662235000,-437.59,0.00026517,7]
[422184402,1778662235000,-435.86,0.00026517,7]
[422184403,1778662235000,-205.75,0.00026517,7]
[422184404,1778662235000,-5829.0,0.00026528,2]
[422184400,1778662235000,-206.07,0.00026517,7]
[422184401,1778662235000,-198.98,0.00026517,7]
[422184409,1778662235000,-198.98,0.00026546,2]
[422184434,1778662235000,-500.0,0.00027123,2]
[422184474,1778662235000,-700.30623,0.0002772,2]
[422184443,1778662235000,-150.0,0.00027123,2]
[422184460,1778662235000,-417.0,0.0002723,2]
[422184464,1778662235000,-158.0,0.00027397,3]
[422184465,1778662235000,-1500.0,0.00027397,2]
[422184467,1778662235000,-5686.8,0.00027397,10]
[422184468,1778662235000,-4739.0,0.00027397,10]
[422184469,1778662235000,-3949.16,0.00027397,10]
[422184466,1778662235000,-300.0,0.00027397,2]
[422184475,1778662235000,-700.30623,0.0002772,2]
[422184473,1778662235000,-350.0,0.00027685,4]
[422184471,1778662235000,-1194.05,0.000274,2]
[422184435,1778662235000,-500.0,0.00027123,2]
[422184470,1778662235000,-3290.97,0.00027397,10]
[422184472,1778662235000,-1051.29642313,0.00027561,2]
[422184478,1778662235000,-206.46335789,0.0002799,2]
[422184477,1778662235000,-500.0,0.000278,7]
[422184479,1778662235000,-150.0,0.00028,2]
[422184483,1778662235000,-103692.02384192,0.00028,120]
[422184481,1778662235000,-293.01766188,0.00028,2]
[422184482,1778662235000,-1232.41698093,0.00028,120]
[422184484,1778662235000,-250.0,0.00028,120]
[422184480,1778662235000,-150.0,0.00028,2]
[422184486,1778662235000,-321.82247513,0.00028,120]
[422184485,1778662235000,-8027.37430591,0.00028,120]
[422184463,1778662235000,-177.37774844,0.00027375,2]
[422184461,1778662235000,-1255.68047341,0.000273,2]
[422184476,1778662235000,-700.30623,0.0002772,2]
[422184458,1778662235000,-1269.0,0.0002723,2]
[422184462,1778662235000,-1679.79256703,0.00027356,2]
[422184433,1778662235000,-500.0,0.00027123,2]
[422184439,1778662235000,-150.0,0.00027123,2]
[422184442,1778662235000,-500.0,0.00027123,2]
[422184436,1778662235000,-66.09570595,0.00027123,2]
[422184441,1778662235000,-150.0,0.00027123,2]
[422184437,1778662235000,-83.90429405,0.00027123,2]
[422184444,1778662235000,-500.0,0.00027123,2]
[422184440,1778662235000,-500.0,0.00027123,2]
[422184446,1778662235000,-500.0,0.00027123,2]
[422184456,1778662235000,-625.0,0.0002723,2]
[422184438,1778662235000,-500.0,0.00027123,2]
[422184450,1778662235000,-150.0,0.00027123,2]
[422184451,1778662235000,-150.0,0.00027123,2]
[422184447,1778662235000,-250.0,0.00027123,2]
[422184448,1778662235000,-500.0,0.00027123,2]
[422184454,1778662235000,-425.49112637,0.0002723,2]
[422184445,1778662235000,-150.0,0.00027123,2]
[422184452,1778662235000,-5628.1471451,0.0002716,2]
[422184449,1778662235000,-273.0,0.00027123,2]
[422184455,1778662235000,-3541.0,0.0002723,2]
[422184453,1778662235000,-500.50887363,0.0002723,2]
[422184457,1778662235000,-1353.0,0.0002723,2]
[422184459,1778662235000,-150.0,0.0002723,2]
[422184505,1778662238000,-205.58,0.00026027,2]
[422184503,1778662238000,-180.14,0.00026027,2]
[422184504,1778662238000,-435.61,0.00026027,2]
[422184502,1778662238000,-154.4,0.00025114,7]
[422184499,1778662238000,-120.88885931,0.0002,2]
[422184500,1778662238000,-1275.11114069,0.0002,2]
[422184501,1778662238000,-154.4,0.00024658,2]
[422184498,1778662238000,-208.27114069,0.00013579,2]
[422184507,1778662238000,-435.61,0.00026055,7]
[422184511,1778662238000,-205.58,0.00026084,2]
[422184506,1778662238000,-199.55,0.00026027,2]
[422184520,1778662238000,-75000.32700048,0.00028,120]
[422184508,1778662238000,-205.58,0.00026055,7]
[422184509,1778662238000,-199.55,0.00026055,7]
[422184512,1778662238000,-199.55,0.00026084,2]
[422184513,1778662238000,-435.61,0.00026113,2]
[422184517,1778662238000,-3752.09809674,0.0002716,2]
[422184515,1778662238000,-180.14,0.00026392,30]
[422184514,1778662238000,-180.14,0.00026209,7]
[422184519,1778662238000,-1500.0,0.00027397,2]
[422184516,1778662238000,-180.14,0.00026575,2]
[422184518,1778662238000,-930.0,0.0002723,2]
[422184521,1778662238000,-4392.0847425,0.00028,120]
[422184510,1778662238000,-435.61,0.00026084,2]
[422184526,1778662241000,-154.4,0.00026027,2]
[422184529,1778662241000,-205.58,0.00026113,2]
[422184530,1778662241000,-199.55,0.00026113,2]
[422184532,1778662241000,-79.73649967,0.00026142,7]
[422184525,1778662241000,-154.4,0.00025571,30]
[422184586,1778662242000,-199.55,0.00026257,2]
[422184577,1778662242000,-435.61,0.00026229,7]
[422184581,1778662242000,-205.58,0.00026257,2]
[422184579,1778662242000,-199.55,0.00026229,7]
[422184583,1778662242000,-435.61,0.00026257,2]
[422184571,1778662242000,-435.61,0.000262,2]
[422184573,1778662242000,-199.55,0.000262,2]
[422184575,1778662242000,-205.58,0.00026229,7]
[422184567,1778662242000,-199.55,0.00026171,7]
[422184561,1778662242000,-199.55,0.00026142,7]
[422184563,1778662242000,-435.61,0.00026171,7]
[422184565,1778662242000,-205.58,0.00026171,7]
[422184556,1778662242000,-355.87350033,0.00026142,7]
[422184558,1778662242000,-205.58,0.00026142,7]
[422184590,1778662242000,-435.61,0.00026286,2]
[422184588,1778662242000,-205.58,0.00026286,2]
[422184569,1778662242000,-205.58,0.000262,2]
[422184602,1778662242000,-435.61,0.00026344,7]
[422184623,1778662242000,-2501.39873116,0.0002716,2]
[422184596,1778662242000,-435.61,0.00026315,7]
[422184621,1778662242000,-154.4,0.0002694,30]
[422184619,1778662242000,-154.4,0.00026484,7]
[422184617,1778662242000,-435.61,0.00026431,2]
[422184625,1778662242000,-41076.53283198,0.00028,120]
[422184613,1778662242000,-435.61,0.00026402,7]
[422184612,1778662242000,-205.58,0.00026402,7]
[422184615,1778662242000,-205.58,0.00026431,2]
[422184608,1778662242000,-435.61,0.00026373,2]
[422184606,1778662242000,-205.58,0.00026373,2]
[422184604,1778662242000,-199.55,0.00026344,7]
[422184592,1778662242000,-199.55,0.00026286,2]
[422184594,1778662242000,-205.58,0.00026315,7]
[422184600,1778662242000,-205.58,0.00026344,7]
[422184598,1778662242000,-199.55,0.00026315,7]
[422184610,1778662242000,-199.55,0.00026373,2]
[422184669,1778662243000,-156.56359846,0.00028,3]
[422184676,1778662243000,-1912.00056687,0.00028,2]
[422184670,1778662243000,-200.0,0.00028,2]
[422184671,1778662243000,-150.0,0.00028,10]
[422184666,1778662243000,-215.51801152,0.00028,2]
[422184668,1778662243000,-200.0,0.00028,2]
[422184681,1778662243000,-413.0,0.00028,10]
[422184679,1778662243000,-185.49,0.00028,2]
[422184684,1778662243000,-161.0,0.00028,120]
[422184675,1778662243000,-1428.83602213,0.00028,2]
[422184683,1778662243000,-651.0,0.00028,10]
[422184678,1778662243000,-200.0,0.00028,2]
[422184680,1778662243000,-185.49,0.00028,2]
[422184677,1778662243000,-1609.3612564,0.00028,2]
[422184682,1778662243000,-528.0,0.00028,10]
[422184667,1778662243000,-151.0,0.00028,2]
[422184674,1778662243000,-700.30623,0.00028,2]
[422184665,1778662243000,-200.0,0.00028,2]
[422184648,1778662243000,-673.3,0.0002123,2]
[422184664,1778662243000,-600.0,0.00028,2]
[422184685,1778662243000,-150.0,0.00028192,2]
[422184649,1778662243000,-5377.7,0.0002123,2]
[422184651,1778662243000,-199.55,0.00026431,2]
[422184652,1778662243000,-205.58,0.00026459,2]
[422184650,1778662243000,-199.55,0.00026402,7]
[422184656,1778662243000,-435.61,0.00026488,7]
[422184653,1778662243000,-435.61,0.00026459,2]
[422184672,1778662243000,-700.30622,0.00028,2]
[422184654,1778662243000,-199.55,0.00026459,2]
[422184659,1778662243000,-205.58,0.00026546,2]
[422184655,1778662243000,-205.58,0.00026488,7]
[422184658,1778662243000,-205.58,0.00026517,7]
[422184657,1778662243000,-199.55,0.00026488,7]
[422184661,1778662243000,-20000.0,0.00028,30]
[422184663,1778662243000,-2752.68398674,0.00028,2]
[422184662,1778662243000,-151.85,0.00028,7]
[422184660,1778662243000,-561825.28684429,0.00028,120]
[422184692,1778662243000,-200.0,0.0002828,2]
[422184673,1778662243000,-700.30623,0.00028,2]
[422184686,1778662243000,-500.0,0.00028194,2]
[422184712,1778662243000,-200.0,0.00029137,2]
[422184709,1778662243000,-563.17126166,0.00028999,10]
[422184713,1778662243000,-200.0,0.00029137,2]
[422184708,1778662243000,-200.0,0.00028848,2]
[422184719,1778662243000,-75255.93685587,0.000299,2]
[422184720,1778662243000,-2103.22,0.000299,14]
[422184711,1778662243000,-200042.9704501,0.00029,2]
[422184710,1778662243000,-2051.2617763,0.00029,7]
[422184715,1778662243000,-4361.0,0.00029445,2]
[422184714,1778662243000,-350.0,0.00029234,3]
[422184717,1778662243000,-151.85,0.000297,7]
[422184716,1778662243000,-150.0,0.00029601,2]
[422184726,1778662243000,-328.05002111,0.0003,5]
[422184722,1778662243000,-463.6401299,0.00029999,2]
[422184721,1778662243000,-196.84,0.00029993,2]
[422184725,1778662243000,-10432.26574323,0.0003,5]
[422184689,1778662243000,-200.0,0.0002828,2]
[422184718,1778662243000,-1051.29642313,0.00029884,2]
[422184707,1778662243000,-200.0,0.00028848,2]
[422184724,1778662243000,-195.0213504,0.00029999,2]
[422184696,1778662243000,-5000.0,0.00028501,2]
[422184703,1778662243000,-200.0,0.00028563,2]
[422184691,1778662243000,-200.0,0.0002828,2]
[422184688,1778662243000,-707.7,0.00028267,2]
[422184690,1778662243000,-200.0,0.0002828,2]
[422184693,1778662243000,-5026.32250966,0.00028501,2]
[422184694,1778662243000,-5000.0,0.00028501,2]
[422184706,1778662243000,-158.0,0.00028841,3]
[422184698,1778662243000,-5016.33037829,0.00028501,2]
[422184687,1778662243000,-503.40789207,0.00028265,2]
[422184723,1778662243000,-500.0,0.00029999,2]
[422184700,1778662243000,-5000.0,0.00028501,2]
[422184702,1778662243000,-200.0,0.00028563,2]
[422184697,1778662243000,-5000.0,0.00028501,2]
[422184701,1778662243000,-200.0,0.00028563,2]
[422184695,1778662243000,-5000.0,0.00028501,2]
[422184704,1778662243000,-350.0,0.00028765,2]
[422184705,1778662243000,-695.93760243,0.00028805,56]
[422184699,1778662243000,-5000.0,0.00028501,2]
[422184744,1778662244000,-930.0,0.0003023,2]
[422184747,1778662244000,-180.39776031,0.00030507,5]
[422184748,1778662244000,-350.0,0.00030519,4]
[422184749,1778662244000,-156.0,0.00030618,30]
[422184750,1778662244000,-154.0,0.00030618,30]
[422184751,1778662244000,-233.0,0.00030618,30]
[422184752,1778662244000,-151.0,0.00030618,30]
[422184758,1778662244000,-159.0,0.0003063,30]
[422184753,1778662244000,-158.0,0.00030618,30]
[422184764,1778662244000,-431.0,0.0003063,30]
[422184755,1778662244000,-150.0,0.0003063,30]
[422184756,1778662244000,-150.0,0.0003063,30]
[422184759,1778662244000,-500.0,0.0003063,30]
[422184742,1778662244000,-1269.0,0.0003023,2]
[422184757,1778662244000,-150.0,0.0003063,30]
[422184754,1778662244000,-158.0,0.00030618,30]
[422184738,1778662244000,-926.0,0.0003023,2]
[422184745,1778662244000,-707.7,0.00030239,2]
[422184740,1778662244000,-625.0,0.0003023,2]
[422184762,1778662244000,-500.0,0.0003063,30]
[422184727,1778662244000,-2000.0,0.0003,3]
[422184732,1778662244000,-1679.79256703,0.00030084,2]
[422184733,1778662244000,-209.0,0.000301,120]
[422184730,1778662244000,-1000.00128823,0.0003,120]
[422184728,1778662244000,-796.21065507,0.0003,2]
[422184731,1778662244000,-2307.95741162,0.0003,120]
[422184729,1778662244000,-4999.0,0.0003,2]
[422184735,1778662244000,-299.30487589,0.00030137,40]
[422184734,1778662244000,-643.66352651,0.0003013,2]
[422184737,1778662244000,-320.29,0.00030137,2]
[422184746,1778662244000,-158.0,0.00030286,3]
[422184736,1778662244000,-200.0,0.00030137,2]
[422184741,1778662244000,-1353.0,0.0003023,2]
[422184743,1778662244000,-417.0,0.0003023,2]
[422184739,1778662244000,-3541.0,0.0003023,2]
[422184760,1778662244000,-500.0,0.0003063,30]
[422184768,1778662244000,-332.0,0.0003063,30]
[422184763,1778662244000,-500.0,0.0003063,30]
[422184787,1778662244000,-200.0,0.00030824,2]
[422184786,1778662244000,-200.0,0.00030824,2]
[422184789,1778662244000,-200.0,0.00030824,2]
[422184785,1778662244000,-200.0,0.00030824,2]
[422184790,1778662244000,-209.0,0.00030824,2]
[422184788,1778662244000,-200.0,0.00030824,2]
[422184791,1778662244000,-1000.0,0.00030828,2]
[422184793,1778662244000,-1000.0,0.00030828,2]
[422184792,1778662244000,-1000.0,0.00030828,2]
[422184796,1778662244000,-1000.0,0.00030828,2]
[422184794,1778662244000,-1000.0,0.00030828,2]
[422184798,1778662244000,-349.04954039,0.00030828,2]
[422184761,1778662244000,-500.0,0.0003063,30]
[422184799,1778662244000,-310.92033995,0.0002423,2]
[422184797,1778662244000,-1000.0,0.00030828,2]
[422184783,1778662244000,-200.0,0.00030824,2]
[422184782,1778662244000,-200.0,0.00030824,2]
[422184795,1778662244000,-1000.0,0.00030828,2]
[422184781,1778662244000,-4303.25595196,0.000308,2]
[422184784,1778662244000,-200.0,0.00030824,2]
[422184769,1778662244000,-155.0,0.00030631,30]
[422184776,1778662244000,-1225.74206666,0.000308,2]
[422184765,1778662244000,-200.0,0.0003063,30]
[422184766,1778662244000,-200.0,0.0003063,30]
[422184777,1778662244000,-1225.74206664,0.000308,2]
[422184770,1778662244000,-154.0,0.00030631,30]
[422184767,1778662244000,-200.0,0.0003063,30]
[422184772,1778662244000,-808.0,0.00030631,30]
[422184775,1778662244000,-265.27,0.000308,7]
[422184773,1778662244000,-976.0,0.00030631,30]
[422184774,1778662244000,-152.0,0.0003077,3]
[422184778,1778662244000,-4303.25595196,0.000308,2]
[422184779,1778662244000,-1225.74206664,0.000308,2]
[422184771,1778662244000,-156.0,0.00030631,30]
[422184780,1778662244000,-4303.25595196,0.000308,2]
[422184813,1778662246000,-653.41,0.00025234,7]
[422184823,1778662246000,-400.65154009,0.00026546,2]
[422184819,1778662246000,-502.0,0.0002622,3]
[422184821,1778662246000,-199.55,0.00026517,7]
[422184820,1778662246000,-435.61,0.00026517,7]
[422184825,1778662246000,-205.72,0.00026575,7]
[422184818,1778662246000,-308.38,0.00025667,7]
[422184824,1778662246000,-199.55,0.00026546,2]
[422184826,1778662246000,-110.50976983,0.00026575,7]
[422184828,1778662246000,-308.38,0.00025811,2]
[422184814,1778662246000,-502.0,0.00025309,2]
[422184827,1778662246000,-653.41,0.00025523,2]
[422184822,1778662246000,-34.95845991,0.00026546,2]
[422184817,1778662246000,-308.38,0.00025523,2]
[422184807,1778662246000,-653.41,0.00024802,7]
[422184815,1778662246000,-308.38,0.00025378,7]
[422184812,1778662246000,-308.38,0.00025234,7]
[422184805,1778662246000,-653.41,0.00024658,2]
[422184810,1778662246000,-308.38,0.0002509,2]
[422184806,1778662246000,-308.38,0.00024802,7]
[422184804,1778662246000,-308.38,0.00024658,2]
[422184809,1778662246000,-653.41,0.00024946,2]
[422184808,1778662246000,-308.38,0.00024946,2]
[422184802,1778662246000,-5740.07966005,0.0002423,2]
[422184803,1778662246000,-502.0,0.00024397,2]
[422184800,1778662246000,-505.0,0.000239,2]
[422184811,1778662246000,-653.41,0.0002509,2]
[422184801,1778662246000,-374.67696467,0.000239,2]
[422184829,1778662246000,-308.38,0.00025955,2]
[422184816,1778662246000,-653.41,0.00025378,7]
[422184830,1778662246000,-325.11023017,0.00026575,7]
[422184859,1778662246000,-1152.58466859,0.00031236,2]
[422184833,1778662246000,-1667.59915411,0.0002716,2]
[422184868,1778662246000,-821.6273956,0.00031305,120]
[422184867,1778662246000,-1050.0,0.00031305,120]
[422184855,1778662246000,-200.0,0.00031096,2]
[422184857,1778662246000,-2103.22,0.000311,14]
[422184865,1778662246000,-175.0,0.00031305,120]
[422184853,1778662246000,-150.0,0.00031081,2]
[422184866,1778662246000,-1050.0,0.00031305,120]
[422184863,1778662246000,-200.0,0.00031305,120]
[422184861,1778662246000,-200.0,0.00031305,120]
[422184850,1778662246000,-556.0,0.00030828,2]
[422184851,1778662246000,-151.85,0.000309,7]
[422184849,1778662246000,-1000.0,0.00030828,2]
[422184846,1778662246000,-323.0,0.00030828,30]
[422184847,1778662246000,-260.0,0.00030828,30]
[422184852,1778662246000,-349.43437101,0.00031,5]
[422184844,1778662246000,-191.82271433,0.00030828,2]
[422184832,1778662246000,-502.0,0.00027132,4]
[422184845,1778662246000,-215.51801153,0.00030828,2]
[422184836,1778662246000,-502.0,0.00028043,5]
[422184835,1778662246000,-585.25122343,0.0002723,2]
[422184837,1778662246000,-502.0,0.00028955,6]
[422184839,1778662246000,-141.94897657,0.0003023,2]
[422184834,1778662246000,-5465.74877657,0.0002723,2]
[422184838,1778662246000,-502.0,0.00029866,7]
[422184842,1778662246000,-3443.91132565,0.0003023,2]
[422184840,1778662246000,-572.01969778,0.0003023,2]
[422184843,1778662246000,-502.0,0.00030778,8]
[422184831,1778662246000,-199.73,0.00026575,7]
[422184848,1778662246000,-650.95045961,0.00030828,2]
[422184841,1778662246000,-1893.12,0.0003023,2]
[422184893,1778662247000,-600.0,0.00031666,2]
[422184895,1778662247000,-600.0,0.00031666,2]
[422184906,1778662247000,-150.0,0.00031918,2]
[422184898,1778662247000,-600.0,0.00031666,2]
[422184903,1778662247000,-365.0,0.00031666,2]
[422184905,1778662247000,-158.0,0.0003173,3]
[422184912,1778662247000,-150.0,0.00031918,2]
[422184904,1778662247000,-502.0,0.00031689,9]
[422184913,1778662247000,-150.0,0.00031918,2]
[422184914,1778662247000,-234.0,0.00031918,2]
[422184894,1778662247000,-600.0,0.00031666,2]
[422184899,1778662247000,-600.0,0.00031666,2]
[422184915,1778662247000,-498.03246933,0.00032,120]
[422184911,1778662247000,-150.0,0.00031918,2]
[422184909,1778662247000,-150.0,0.00031918,2]
[422184910,1778662247000,-150.0,0.00031918,2]
[422184907,1778662247000,-150.0,0.00031918,2]
[422184916,1778662247000,-2103.22,0.00032,14]
[422184926,1778662247000,-441.0,0.00032,120]
[422184922,1778662247000,-250.0,0.00032,120]
[422184917,1778662247000,-1027.96,0.00032,120]
[422184921,1778662247000,-250.0,0.00032,120]
[422184918,1778662247000,-200.0,0.00032,120]
[422184891,1778662247000,-550.0,0.00031632,2]
[422184908,1778662247000,-150.0,0.00031918,2]
[422184897,1778662247000,-600.0,0.00031666,2]
[422184881,1778662247000,-808.0,0.00031631,30]
[422184889,1778662247000,-550.0,0.00031632,2]
[422184927,1778662247000,-788.02,0.0003202,30]
[422184869,1778662247000,-480.0,0.00030828,30]
[422184870,1778662247000,-108.3726044,0.00031305,120]
[422184872,1778662247000,-505.81771785,0.0003152,2]
[422184871,1778662247000,-1000.0,0.000315,7]
[422184873,1778662247000,-156.0,0.00031618,30]
[422184877,1778662247000,-165.83592434,0.00031618,30]
[422184874,1778662247000,-154.0,0.00031618,30]
[422184876,1778662247000,-151.0,0.00031618,30]
[422184875,1778662247000,-233.0,0.00031618,30]
[422184878,1778662247000,-158.0,0.00031618,30]
[422184892,1778662247000,-488.0,0.00031632,2]
[422184880,1778662247000,-156.0,0.00031631,30]
[422184884,1778662247000,-550.0,0.00031632,2]
[422184882,1778662247000,-976.0,0.00031631,30]
[422184883,1778662247000,-550.0,0.00031632,2]
[422184885,1778662247000,-550.0,0.00031632,2]
[422184888,1778662247000,-550.0,0.00031632,2]
[422184887,1778662247000,-550.0,0.00031632,2]
[422184886,1778662247000,-550.0,0.00031632,2]
[422184902,1778662247000,-600.0,0.00031666,2]
[422184890,1778662247000,-550.0,0.00031632,2]
[422184900,1778662247000,-600.0,0.00031666,2]
[422184901,1778662247000,-600.0,0.00031666,2]
[422184879,1778662247000,-155.0,0.00031631,30]
[422184923,1778662247000,-215.0,0.00032,120]
[422184950,1778662247000,-158.0,0.00032618,30]
[422184919,1778662247000,-200.0,0.00032,120]
[422184958,1778662247000,-1679.79256703,0.00032812,2]
[422184959,1778662247000,-1400.0,0.00032877,120]
[422184957,1778662247000,-150.66414301,0.000327,30]
[422184955,1778662247000,-150.0,0.00032636,2]
[422184953,1778662247000,-808.0,0.00032631,30]
[422184956,1778662247000,-151.85,0.000327,7]
[422184961,1778662247000,-1311.0,0.00032877,120]
[422184962,1778662247000,-200.0,0.00032877,120]
[422184960,1778662247000,-1400.0,0.00032877,120]
[422184971,1778662247000,-1013.31,0.00032877,7]
[422184964,1778662247000,-156.0,0.00032877,120]
[422184963,1778662247000,-200.0,0.00032877,120]
[422184969,1778662247000,-650.0,0.00032877,120]
[422184966,1778662247000,-800.0,0.00032877,120]
[422184965,1778662247000,-800.0,0.00032877,120]
[422184967,1778662247000,-726.0,0.00032877,120]
[422184968,1778662247000,-650.0,0.00032877,120]
[422184970,1778662247000,-555.0,0.00032877,120]
[422184973,1778662247000,-265.27,0.000329,7]
[422184972,1778662247000,-10000.0,0.00032877,120]
[422184974,1778662247000,-29649.29741832,0.00033,3]
[422184975,1778662247000,-6326.99158588,0.00033,120]
[422184976,1778662247000,-2339.93181965,0.00033,30]
[422184954,1778662247000,-976.0,0.00032631,30]
[422184952,1778662247000,-156.0,0.00032631,30]
[422184951,1778662247000,-155.0,0.00032631,30]
[422184949,1778662247000,-151.0,0.00032618,30]
[422184920,1778662247000,-153.0,0.00032,120]
[422184925,1778662247000,-500.0,0.00032,120]
[422184936,1778662247000,-500.0,0.0003222,120]
[422184933,1778662247000,-253.0,0.0003222,120]
[422184932,1778662247000,-200.0,0.0003222,120]
[422184931,1778662247000,-11000.0,0.0003222,120]
[422184929,1778662247000,-1051.29642313,0.00032208,2]
[422184930,1778662247000,-707.7,0.0003221,5]
[422184928,1778662247000,-200.0,0.00032055,2]
[422184934,1778662247000,-200.0,0.0003222,120]
[422184935,1778662247000,-252.0,0.0003222,120]
[422184977,1778662247000,-21173.92328977,0.00033,3]
[422184939,1778662247000,-800.0,0.0003222,120]
[422184942,1778662247000,-150.0,0.0003222,120]
[422184946,1778662247000,-156.0,0.00032618,30]
[422184937,1778662247000,-500.0,0.0003222,120]
[422184944,1778662247000,-502.0,0.00032601,10]
[422184947,1778662247000,-154.0,0.00032618,30]
[422184943,1778662247000,-208.0,0.0003222,120]
[422184948,1778662247000,-233.0,0.00032618,30]
[422184938,1778662247000,-359.0,0.0003222,120]
[422184945,1778662247000,-152.0,0.00032611,4]
[422184941,1778662247000,-789.0,0.0003222,120]
[422184978,1778662247000,-470.67499546,0.00033,3]
[422184940,1778662247000,-800.0,0.0003222,120]
[422184924,1778662247000,-500.0,0.00032,120]
[422184980,1778662437000,7334.0,0.00027,120]
[422184981,1778662763000,629.76,0.00027397,120]
[422184988,1778663213000,-57.59774982,0.00011817,2]
[422184987,1778663213000,-156.18,0.00011734,2]
[422184989,1778663253000,2835.0,7.17e-05,2]
[422184990,1778663254000,2835.0,8.17e-05,2]
[422184991,1778663256000,2835.0,9.17e-05,2]
[422184993,1778663346000,543.84,0.00027397,120]
[422184994,1778663360000,-2835.0,0.0001017,2]
[422184996,1778663360000,-233.0,0.00011899,2]
[422184998,1778663360000,-340.70480094,0.0001217,2]
[422184995,1778663360000,-2835.0,0.0001117,2]
[422184997,1778663360000,-116565.8730118,0.000119,2]
[422185036,1778663432000,-500.0,0.00013598,2]
[422185029,1778663432000,-461.02668787,0.00013598,2]
[422185030,1778663432000,-156.03913511,0.00013598,2]
[422185032,1778663432000,-353.73196523,0.00013598,2]
[422185028,1778663432000,-202.92129044,0.000135,2]
[422185031,1778663432000,-500.0,0.00013598,2]
[422185033,1778663432000,-500.0,0.00013598,2]
[422185037,1778663432000,-500.0,0.00013598,2]
[422185040,1778663432000,-431.21856177,0.00013598,2]
[422185038,1778663432000,-500.0,0.00013598,2]
[422185039,1778663432000,-500.0,0.00013598,2]
[422185034,1778663432000,-174.83406365,0.00013598,2]
[422185045,1778663432000,-500.0,0.00013598,2]
[422185041,1778663432000,-500.0,0.00013598,2]
[422185042,1778663432000,-500.0,0.00013598,2]
[422185043,1778663432000,-500.0,0.00013598,2]
[422185044,1778663432000,-500.0,0.00013598,2]
[422185035,1778663432000,-258.8637235,0.00013598,2]
[422185027,1778663432000,-1140.6925446,0.000135,2]
[422185025,1778663432000,-412.70938617,0.000135,2]
[422185024,1778663432000,-1000.0,0.000135,2]
[422185006,1778663432000,-1450.0,0.0001217,2]
[422185007,1778663432000,-1059.29170773,0.0001217,2]
[422185008,1778663432000,-450.11154394,0.00012748,2]
[422185010,1778663432000,-979.81194813,0.00013387,2]
[422185011,1778663432000,-851.23643277,0.00013387,2]
[422185009,1778663432000,-500.0,0.00013326,2]
[422185012,1778663432000,-751.26389848,0.00013387,2]
[422185013,1778663432000,-500.0,0.00013387,2]
[422185026,1778663432000,-745.91817243,0.000135,2]
[422185014,1778663432000,-250.0,0.00013387,2]
[422185019,1778663432000,-150.0,0.00013488,2]
[422185016,1778663432000,-150.0,0.00013488,2]
[422185018,1778663432000,-150.00000001,0.00013488,2]
[422185017,1778663432000,-150.0,0.00013488,2]
[422185020,1778663432000,-150.0,0.00013488,2]